fUSD/lending_fUSD_20250217
["ID","MTS","AMOUNT","RATE_DAILY","PERIOD"]
[353406828,1739817060762,-1215.29,0.00014191,2]
[353406829,1739817060771,-646.83,0.00014191,2]
[353406830,1739817060782,-538.83,0.00014191,2]
[353406831,1739817060792,-902.35,0.00014191,2]
[353406832,1739817060802,-644.92,0.00014191,2]
[353406833,1739817060813,-1255.58,0.00014191,2]
[353406834,1739817060823,-500.0,0.00014191,2]
[353406835,1739817060834,-500.0,0.00014191,2]
[353406836,1739817060844,-1054.84,0.00014191,2]
[353406837,1739817060853,-737.27,0.00014191,2]
[353406838,1739817060864,-151.0,0.00014191,2]
[353406839,1739817060874,-151.306856,0.00014191,2]
[353406840,1739817060884,-2118.94,0.00014191,2]
[353406841,1739817060894,-1255.01,0.00014191,2]
[353406842,1739817060905,-766.68,0.00014191,2]
[353406843,1739817060915,-500.0,0.00014191,2]
[353406844,1739817060925,-500.0,0.00014191,2]
[353406845,1739817060935,-548.79,0.00014191,2]
[353406846,1739817060946,-500.0,0.00014191,2]
[353406847,1739817060958,-1306.56,0.00014191,2]
[353406848,1739817060969,-649.85,0.00014191,2]
[353406849,1739817060979,-817.66,0.00014191,2]
[353406850,1739817060989,-500.0,0.00014191,2]
[353406851,1739817060999,-500.0,0.00014225,2]
[353406852,1739817061009,-2000.0,0.00014225,2]
[353406853,1739817061020,-500.0,0.00014225,2]
[353406854,1739817061030,-200.0,0.00014225,2]
[353406855,1739817061041,-150.0,0.00014248,2]
[353406856,1739817061052,-150.0,0.00014248,2]
[353406857,1739817061063,-7171.97765721,0.00014256,2]
[353406858,1739817061073,-212.129909,0.00014273,2]
[353406859,1739817061083,-324.554653,0.00014273,2]
[353406860,1739817061094,-500.0,0.00014273,2]
[353406861,1739817061104,-500.0,0.00014273,2]
[353406862,1739817061114,-500.0,0.00014273,2]
[353406863,1739817061124,-500.0,0.00014273,2]
[353406864,1739817061135,-603.49590327,0.00014273,2]
[353406865,1739817061144,-536.78702459,0.00014273,2]
[353406866,1739817061154,-500.0,0.00014273,2]
[353406867,1739817061165,-500.0,0.00014273,2]
[353406868,1739817061174,-500.0,0.00014273,2]
[353406869,1739817061183,-500.0,0.00014273,2]
[353406870,1739817061193,-637.31,0.00014273,2]
[353406871,1739817061206,-500.0,0.00014273,2]
[353406872,1739817061215,-500.0,0.00014273,2]
[353406873,1739817061226,-500.0,0.00014273,2]
[353406874,1739817061235,-520.06,0.00014273,2]
[353406875,1739817061245,-500.0,0.00014273,2]
[353406876,1739817061254,-938.49,0.00014273,2]
[353406877,1739817061264,-500.0,0.00014273,2]
[353406878,1739817061273,-500.0,0.00014273,2]
[353406879,1739817061283,-527.54,0.00014273,2]
[353406880,1739817061292,-500.0,0.00014273,2]
[353406881,1739817061302,-500.0,0.00014273,2]
[353406882,1739817061311,-500.0,0.00014273,2]
[353406883,1739817061320,-500.0,0.00014273,2]
[353406884,1739817061331,-703.03,0.00014273,2]
[353406885,1739817061340,-500.0,0.00014273,2]
[353406886,1739817061350,-709.36,0.00014273,2]
[353406887,1739817061360,-500.0,0.00014273,2]
[353406888,1739817061369,-500.0,0.00014273,2]
[353406889,1739817061379,-675.42,0.00014273,2]
[353406890,1739817061389,-608.75413928,0.00014273,2]
[353406891,1739817061399,-500.0,0.00014273,2]
[353406892,1739817061409,-156.036517,0.00014273,2]
[353406893,1739817061419,-505.6,0.00014273,2]
[353406894,1739817061429,-500.0,0.00014273,2]
[353406895,1739817061439,-500.0,0.00014273,2]
[353406896,1739817061452,-500.0,0.00014273,2]
[353406897,1739817061462,-283.12015497,0.00014273,2]
[353406898,1739817061472,-500.0,0.00014273,2]
[353406899,1739817061482,-500.0,0.00014273,2]
[353406900,1739817061491,-638.73,0.00014273,2]
[353406901,1739817061501,-571.56,0.00014273,2]
[353406902,1739817061511,-500.0,0.00014273,2]
[353406903,1739817061520,-500.0,0.00014273,2]
[353406904,1739817061530,-628.39,0.00014273,2]
[353406905,1739817061539,-500.0,0.00014273,2]
[353406906,1739817061553,-500.0,0.00014273,2]
[353406907,1739817061563,-500.0,0.00014273,2]
[353406908,1739817061573,-752.97,0.00014273,2]
[353406909,1739817061583,-500.0,0.00014273,2]
[353406910,1739817061592,-500.0,0.00014273,2]
[353406911,1739817061602,-500.0,0.00014273,2]
[353406912,1739817061612,-563.15,0.00014273,2]
[353406913,1739817061622,-500.0,0.00014273,2]
[353406914,1739817061632,-500.0,0.00014273,2]
[353406915,1739817061642,-1009.3,0.00014273,2]
[353406916,1739817061652,-500.0,0.00014273,2]
[353406917,1739817061662,-500.0,0.00014273,2]
[353406918,1739817061672,-500.0,0.00014273,2]
[353406919,1739817061681,-500.0,0.00014273,2]
[353406920,1739817061691,-500.0,0.00014273,2]
[353406921,1739817061702,-500.0,0.00014273,2]
[353406922,1739817061712,-500.0,0.00014273,2]
[353406923,1739817061722,-500.0,0.00014273,2]
[353406924,1739817061732,-500.0,0.00014273,2]
[353406925,1739817061742,-500.0,0.00014273,2]
[353406926,1739817061947,-565.46,0.00014273,2]
[353406927,1739817061957,-643.79,0.00014273,2]
[353406928,1739817061967,-383.56707811,0.00014273,2]
[353406929,1739817061977,-1594.07,0.00014273,2]
[353406930,1739817061987,-500.0,0.00014273,2]
[353406931,1739817061997,-832.31,0.00014273,2]
[353406932,1739817062007,-1331.41,0.00014273,2]
[353406933,1739817062016,-500.0,0.00014273,2]
[353406934,1739817062026,-1191.93,0.00014273,2]
[353406935,1739817062036,-3245.66,0.00014273,2]
[353406936,1739817062046,-613.53,0.00014273,2]
[353406937,1739817062059,-500.0,0.00014273,2]
[353406938,1739817062069,-1602.85,0.00014273,2]
[353406939,1739817062078,-1174.07,0.00014273,2]
[353406940,1739817062088,-787.36,0.00014273,2]
[353406941,1739817062097,-597.6,0.00014273,2]
[353406942,1739817062107,-1331.58,0.00014273,2]
[353406943,1739817062118,-1912.36,0.00014273,2]
[353406944,1739817062130,-500.0,0.00014273,2]
[353406945,1739817062141,-1287.66,0.00014273,2]
[353406946,1739817062151,-562.46,0.00014273,2]
[353406947,1739817062160,-849.74,0.00014273,2]
[353406948,1739817062170,-500.0,0.00014273,2]
[353406949,1739817062179,-745.2,0.00014273,2]
[353406950,1739817062189,-566.99,0.00014273,2]
[353406951,1739817062199,-549.59,0.00014273,2]
[353406952,1739817062209,-736.81,0.00014273,2]
[353406953,1739817062220,-1869.49,0.00014273,2]
[353406954,1739817062229,-917.79,0.00014273,2]
[353406955,1739817062241,-867.32,0.00014273,2]
[353406956,1739817062251,-500.0,0.00014273,2]
[353406957,1739817062261,-599.7,0.00014273,2]
[353406958,1739817062270,-992.25,0.00014273,2]
[353406959,1739817062280,-1248.25,0.00014273,2]
[353406960,1739817062289,-1034.43,0.00014273,2]
[353406961,1739817062298,-500.0,0.00014273,2]
[353406962,1739817062308,-770.08,0.00014273,2]
[353406963,1739817062317,-937.95,0.00014273,2]
[353406964,1739817062327,-500.0,0.00014273,2]
[353406965,1739817062336,-1106.33,0.00014273,2]
[353406966,1739817062347,-855.4,0.00014273,2]
[353406967,1739817062356,-766.63,0.00014273,2]
[353406968,1739817062365,-500.0,0.00014273,2]
[353406969,1739817062374,-871.51,0.00014273,2]
[353406970,1739817062384,-697.18,0.00014273,2]
[353406971,1739817062393,-560.97,0.00014273,2]
[353406972,1739817062402,-732.42,0.00014273,2]
[353406973,1739817062411,-1728.78,0.00014273,2]
[353406974,1739817062421,-712.45,0.00014273,2]
[353406975,1739817062431,-881.49,0.00014273,2]
[353406976,1739817062441,-860.0,0.00014273,2]
[353406977,1739817062452,-513.29,0.00014273,2]
[353406978,1739817062463,-797.71,0.00014273,2]
[353406979,1739817062472,-3858.73,0.00014273,2]
[353406980,1739817062482,-885.55,0.00014273,2]
[353406981,1739817062492,-1088.65,0.00014273,2]
[353406982,1739817062503,-500.0,0.00014273,2]
[353406983,1739817062513,-918.24,0.00014273,2]
[353406984,1739817062524,-1203.48,0.00014273,2]
[353406985,1739817062535,-1146.63,0.00014273,2]
[353406986,1739817062546,-793.62,0.00014273,2]
[353406987,1739817062556,-500.0,0.00014273,2]
[353406988,1739817062566,-1168.4,0.00014273,2]
[353406989,1739817062576,-757.31,0.00014273,2]
[353406990,1739817062585,-990.01,0.00014273,2]
[353406991,1739817062595,-790.25,0.00014273,2]
[353406992,1739817062605,-1217.01,0.00014273,2]
[353406993,1739817062615,-500.0,0.00014273,2]
[353406994,1739817062625,-718.94,0.00014273,2]
[353406995,1739817062635,-680.28,0.00014273,2]
[353406996,1739817062645,-1276.37,0.00014273,2]
[353406997,1739817062655,-500.0,0.00014273,2]
[353406998,1739817062665,-678.99,0.00014273,2]
[353406999,1739817062675,-500.0,0.00014273,2]
[353407000,1739817062684,-914.1,0.00014273,2]
[353407001,1739817062694,-705.63,0.00014273,2]
[353407002,1739817062709,-854.97,0.00014273,2]
[353407003,1739817062720,-1540.6,0.00014273,2]
[353407004,1739817062731,-917.85,0.00014273,2]
[353407005,1739817062741,-769.56,0.00014273,2]
[353407006,1739817062751,-983.72,0.00014273,2]
[353407007,1739817062761,-1445.12,0.00014273,2]
[353407008,1739817062771,-779.26,0.00014273,2]
[353407009,1739817062781,-564.39,0.00014273,2]
[353407010,1739817062791,-626.04,0.00014273,2]
[353407011,1739817062800,-1013.2,0.00014273,2]
[353407012,1739817062810,-500.0,0.00014273,2]
[353407013,1739817062820,-2061.01,0.00014273,2]
[353407014,1739817062830,-856.02,0.00014273,2]
[353407015,1739817062839,-500.0,0.00014273,2]
[353407016,1739817062850,-626.76,0.00014273,2]
[353407017,1739817062861,-874.57,0.00014273,2]
[353407018,1739817062870,-957.74,0.00014273,2]
[353407019,1739817062879,-500.0,0.00014273,2]
[353407020,1739817062888,-500.0,0.00014273,2]
[353407021,1739817062897,-2399.52,0.00014273,2]
[353407022,1739817062907,-932.0,0.00014273,2]
[353407023,1739817062916,-1149.24,0.00014273,2]
[353407024,1739817062926,-500.0,0.00014273,2]
[353407025,1739817062937,-500.0,0.00014273,2]
[353407026,1739817062949,-500.0,0.00014273,2]
[353407027,1739817062959,-729.63,0.00014273,2]
[353407028,1739817062968,-1026.51,0.00014273,2]
[353407029,1739817062978,-593.41,0.00014273,2]
[353407030,1739817062987,-1215.29,0.00014273,2]
[353407031,1739817062996,-646.83,0.00014273,2]
[353407032,1739817063006,-538.83,0.00014273,2]
[353407033,1739817063015,-902.35,0.00014273,2]
[353407034,1739817063025,-644.92,0.00014273,2]
[353407035,1739817063039,-1255.58,0.00014273,2]
[353407036,1739817063054,-500.0,0.00014273,2]
[353407037,1739817063064,-500.0,0.00014273,2]
[353407038,1739817063074,-1054.84,0.00014273,2]
[353407039,1739817063084,-737.27,0.00014273,2]
[353407040,1739817063095,-2118.94,0.00014273,2]
[353407041,1739817063105,-1255.01,0.00014273,2]
[353407042,1739817063115,-766.68,0.00014273,2]
[353407043,1739817063127,-500.0,0.00014273,2]
[353407044,1739817063137,-500.0,0.00014273,2]
[353407045,1739817063147,-548.79,0.00014273,2]
[353407046,1739817063157,-500.0,0.00014273,2]
[353407047,1739817063167,-1306.56,0.00014273,2]
[353407048,1739817063176,-649.85,0.00014273,2]
[353407049,1739817063186,-817.66,0.00014273,2]
[353407050,1739817063195,-500.0,0.00014273,2]
[353407051,1739817063206,-1593.23,0.00014285,2]
[353407052,1739817063216,-204.0,0.000143,2]
[353407053,1739817063225,-812.89,0.0001431,2]
[353407054,1739817063235,-212.129909,0.00014356,2]
[353407055,1739817063245,-324.554653,0.00014356,2]
[353407056,1739817063254,-500.0,0.00014356,2]
[353407057,1739817063264,-500.0,0.00014356,2]
[353407058,1739817063274,-500.0,0.00014356,2]
[353407059,1739817063284,-500.0,0.00014356,2]
[353407060,1739817063293,-500.0,0.00014356,2]
[353407061,1739817063303,-500.0,0.00014356,2]
[353407062,1739817063313,-500.0,0.00014356,2]
[353407063,1739817063323,-500.0,0.00014356,2]
[353407064,1739817063332,-637.31,0.00014356,2]
[353407065,1739817063342,-265.39033586,0.00014356,2]
[353407066,1739817063352,-500.0,0.00014356,2]
[353407067,1739817063361,-500.0,0.00014356,2]
[353407068,1739817063371,-520.06,0.00014356,2]
[353407069,1739817063380,-500.0,0.00014356,2]
[353407070,1739817063390,-938.49,0.00014356,2]
[353407071,1739817063400,-500.0,0.00014356,2]
[353407072,1739817063410,-500.0,0.00014356,2]
[353407073,1739817063421,-527.54,0.00014356,2]
[353407074,1739817063431,-150.70163532,0.00014356,2]
[353407075,1739817063441,-500.0,0.00014356,2]
[353407076,1739817063452,-500.0,0.00014356,2]
[353407077,1739817063462,-500.0,0.00014356,2]
[353407078,1739817063472,-703.03,0.00014356,2]
[353407079,1739817063482,-500.0,0.00014356,2]
[353407080,1739817063492,-709.36,0.00014356,2]
[353407081,1739817063502,-500.0,0.00014356,2]
[353407082,1739817063513,-500.0,0.00014356,2]
[353407083,1739817063523,-675.42,0.00014356,2]
[353407084,1739817063532,-500.0,0.00014356,2]
[353407085,1739817063542,-505.6,0.00014356,2]
[353407086,1739817063552,-548.07,0.00014356,2]
[353407087,1739817063562,-500.0,0.00014356,2]
[353407088,1739817063572,-536.74430585,0.00014356,2]
[353407089,1739817063583,-500.0,0.00014356,2]
[353407090,1739817063592,-500.0,0.00014356,2]
[353407091,1739817063603,-638.73,0.00014356,2]
[353407092,1739817063613,-571.56,0.00014356,2]
[353407093,1739817063623,-180.896505,0.00014356,2]
[353407094,1739817063634,-466.4885139,0.00014356,2]
[353407095,1739817063644,-500.0,0.00014356,2]
[353407096,1739817063654,-628.39,0.00014356,2]
[353407097,1739817063664,-500.0,0.00014356,2]
[353407098,1739817063674,-500.0,0.00014356,2]
[353407099,1739817063683,-500.0,0.00014356,2]
[353407100,1739817063693,-752.97,0.00014356,2]
[353407101,1739817063706,-500.0,0.00014356,2]
[353407102,1739817063716,-500.0,0.00014356,2]
[353407103,1739817063726,-500.0,0.00014356,2]
[353407104,1739817063736,-563.15,0.00014356,2]
[353407105,1739817063746,-500.0,0.00014356,2]
[353407106,1739817063756,-500.0,0.00014356,2]
[353407107,1739817063766,-1009.3,0.00014356,2]
[353407108,1739817063777,-500.0,0.00014356,2]
[353407109,1739817063787,-517.55627289,0.00014356,2]
[353407110,1739817063798,-500.0,0.00014356,2]
[353407111,1739817063808,-500.0,0.00014356,2]
[353407112,1739817063818,-500.0,0.00014356,2]
[353407113,1739817063828,-500.0,0.00014356,2]
[353407114,1739817063838,-500.0,0.00014356,2]
[353407115,1739817063848,-500.0,0.00014356,2]
[353407116,1739817063858,-500.0,0.00014356,2]
[353407117,1739817063869,-500.0,0.00014356,2]
[353407118,1739817063879,-565.46,0.00014356,2]
[353407119,1739817063891,-643.79,0.00014356,2]
[353407120,1739817063900,-1594.07,0.00014356,2]
[353407121,1739817063911,-500.0,0.00014356,2]
[353407122,1739817063921,-832.31,0.00014356,2]
[353407123,1739817063932,-1331.41,0.00014356,2]
[353407124,1739817063942,-500.0,0.00014356,2]
[353407125,1739817063954,-1191.93,0.00014356,2]
[353407126,1739817063964,-3245.66,0.00014356,2]
[353407127,1739817063975,-613.53,0.00014356,2]
[353407128,1739817063985,-500.0,0.00014356,2]
[353407129,1739817063995,-1602.85,0.00014356,2]
[353407130,1739817064005,-1174.07,0.00014356,2]
[353407131,1739817064015,-787.36,0.00014356,2]
[353407132,1739817064026,-597.6,0.00014356,2]
[353407133,1739817064036,-1331.58,0.00014356,2]
[353407134,1739817064049,-1912.36,0.00014356,2]
[353407135,1739817064059,-500.0,0.00014356,2]
[353407136,1739817064069,-1287.66,0.00014356,2]
[353407137,1739817064079,-562.46,0.00014356,2]
[353407138,1739817064091,-849.74,0.00014356,2]
[353407139,1739817064100,-500.0,0.00014356,2]
[353407140,1739817064110,-745.2,0.00014356,2]
[353407141,1739817064119,-566.99,0.00014356,2]
[353407142,1739817064131,-549.59,0.00014356,2]
[353407143,1739817064141,-736.81,0.00014356,2]
[353407144,1739817064150,-1869.49,0.00014356,2]
[353407145,1739817064160,-917.79,0.00014356,2]
[353407146,1739817064170,-867.32,0.00014356,2]
[353407147,1739817064181,-500.0,0.00014356,2]
[353407148,1739817064191,-599.7,0.00014356,2]
[353407149,1739817064203,-992.25,0.00014356,2]
[353407150,1739817064213,-1248.25,0.00014356,2]
[353407151,1739817064224,-1034.43,0.00014356,2]
[353407152,1739817064234,-500.0,0.00014356,2]
[353407153,1739817064244,-770.08,0.00014356,2]
[353407154,1739817064254,-937.95,0.00014356,2]
[353407155,1739817064265,-500.0,0.00014356,2]
[353407156,1739817064275,-1106.33,0.00014356,2]
[353407157,1739817064286,-855.4,0.00014356,2]
[353407158,1739817064296,-766.63,0.00014356,2]
[353407159,1739817064306,-500.0,0.00014356,2]
[353407160,1739817064317,-871.51,0.00014356,2]
[353407161,1739817064326,-697.18,0.00014356,2]
[353407162,1739817064336,-560.97,0.00014356,2]
[353407163,1739817064347,-732.42,0.00014356,2]
[353407164,1739817064357,-151.0,0.00014356,2]
[353407165,1739817064367,-1728.78,0.00014356,2]
[353407166,1739817064376,-712.45,0.00014356,2]
[353407167,1739817064386,-230.425858,0.00014356,2]
[353407168,1739817064396,-881.49,0.00014356,2]
[353407169,1739817064405,-151.0,0.00014356,2]
[353407170,1739817064415,-860.0,0.00014356,2]
[353407171,1739817064425,-513.29,0.00014356,2]
[353407172,1739817064435,-797.71,0.00014356,2]
[353407173,1739817064445,-246.827152,0.00014356,2]
[353407174,1739817064457,-3858.73,0.00014356,2]
[353407175,1739817064467,-885.55,0.00014356,2]
[353407176,1739817064527,-1088.65,0.00014356,2]
[353407177,1739817064537,-500.0,0.00014356,2]
[353407178,1739817064547,-918.24,0.00014356,2]
[353407179,1739817064556,-1203.48,0.00014356,2]
[353407180,1739817064566,-1146.63,0.00014356,2]
[353407181,1739817064576,-793.62,0.00014356,2]
[353407182,1739817064585,-500.0,0.00014356,2]
[353407183,1739817064594,-1168.4,0.00014356,2]
[353407184,1739817064604,-757.31,0.00014356,2]
[353407185,1739817064614,-990.01,0.00014356,2]
[353407186,1739817064624,-790.25,0.00014356,2]
[353407187,1739817064634,-1217.01,0.00014356,2]
[353407188,1739817064643,-500.0,0.00014356,2]
[353407189,1739817064652,-718.94,0.00014356,2]
[353407190,1739817064662,-680.28,0.00014356,2]
[353407191,1739817064672,-1276.37,0.00014356,2]
[353407192,1739817064681,-500.0,0.00014356,2]
[353407193,1739817064691,-678.99,0.00014356,2]
[353407194,1739817064703,-500.0,0.00014356,2]
[353407195,1739817064713,-914.1,0.00014356,2]
[353407196,1739817064723,-854.97,0.00014356,2]
[353407197,1739817064732,-705.63,0.00014356,2]
[353407198,1739817064741,-1540.6,0.00014356,2]
[353407199,1739817064750,-917.85,0.00014356,2]
[353407200,1739817064760,-769.56,0.00014356,2]
[353407201,1739817064769,-983.72,0.00014356,2]
[353407202,1739817064779,-1445.12,0.00014356,2]
[353407203,1739817064789,-779.26,0.00014356,2]
[353407204,1739817064799,-564.39,0.00014356,2]
[353407205,1739817064808,-626.04,0.00014356,2]
[353407206,1739817064817,-1013.2,0.00014356,2]
[353407207,1739817064827,-500.0,0.00014356,2]
[353407208,1739817064836,-2061.01,0.00014356,2]
[353407209,1739817064845,-856.02,0.00014356,2]
[353407210,1739817064854,-500.0,0.00014356,2]
[353407211,1739817064863,-626.76,0.00014356,2]
[353407212,1739817064873,-874.57,0.00014356,2]
[353407213,1739817064881,-957.74,0.00014356,2]
[353407214,1739817064890,-500.0,0.00014356,2]
[353407215,1739817064901,-500.0,0.00014356,2]
[353407216,1739817064910,-2399.52,0.00014356,2]
[353407217,1739817064921,-932.0,0.00014356,2]
[353407218,1739817064931,-1149.24,0.00014356,2]
[353407219,1739817064941,-500.0,0.00014356,2]
[353407220,1739817064953,-500.0,0.00014356,2]
[353407221,1739817064963,-500.0,0.00014356,2]
[353407222,1739817064973,-729.63,0.00014356,2]
[353407223,1739817064982,-1026.51,0.00014356,2]
[353407224,1739817064991,-593.41,0.00014356,2]
[353407225,1739817065001,-1215.29,0.00014356,2]
[353407226,1739817065010,-646.83,0.00014356,2]
[353407227,1739817065019,-538.83,0.00014356,2]
[353407228,1739817065028,-902.35,0.00014356,2]
[353407229,1739817065037,-644.92,0.00014356,2]
[353407230,1739817065052,-1255.58,0.00014356,2]
[353407231,1739817065062,-500.0,0.00014356,2]
[353407232,1739817065072,-500.0,0.00014356,2]
[353407233,1739817065082,-1054.84,0.00014356,2]
[353407234,1739817065092,-737.27,0.00014356,2]
[353407235,1739817065101,-2118.94,0.00014356,2]
[353407236,1739817065112,-1255.01,0.00014356,2]
[353407237,1739817065123,-766.68,0.00014356,2]
[353407238,1739817065135,-500.0,0.00014356,2]
[353407239,1739817065144,-500.0,0.00014356,2]
[353407240,1739817065154,-548.79,0.00014356,2]
[353407241,1739817065164,-500.0,0.00014356,2]
[353407242,1739817065174,-1306.56,0.00014356,2]
[353407243,1739817065183,-649.85,0.00014356,2]
[353407244,1739817065192,-817.66,0.00014356,2]
[353407245,1739817065202,-500.0,0.00014356,2]
[353407246,1739817065212,-212.129909,0.00014438,2]
[353407247,1739817065221,-324.554653,0.00014438,2]
[353407248,1739817065230,-358.36269069,0.00014438,2]
[353407249,1739817065239,-500.0,0.00014438,2]
[353407250,1739817065249,-500.0,0.00014438,2]
[353407251,1739817065259,-461.55382564,0.00014438,2]
[353407252,1739817065268,-500.0,0.00014438,2]
[353407253,1739817065278,-588.34,0.00014438,2]
[353407254,1739817065287,-500.0,0.00014438,2]
[353407255,1739817065295,-500.0,0.00014438,2]
[353407256,1739817065304,-637.31,0.00014438,2]
[353407257,1739817065314,-500.0,0.00014438,2]
[353407258,1739817065323,-500.0,0.00014438,2]
[353407259,1739817065332,-520.06,0.00014438,2]
[353407260,1739817065342,-500.0,0.00014438,2]
[353407261,1739817065351,-938.49,0.00014438,2]
[353407262,1739817065361,-500.0,0.00014438,2]
[353407263,1739817065370,-250.69939424,0.00014438,2]
[353407264,1739817065379,-527.54,0.00014438,2]
[353407265,1739817065389,-500.0,0.00014438,2]
[353407266,1739817065398,-500.0,0.00014438,2]
[353407267,1739817065407,-500.0,0.00014438,2]
[353407268,1739817065416,-703.03,0.00014438,2]
[353407269,1739817065425,-227.07209981,0.00014438,2]
[353407270,1739817065434,-709.36,0.00014438,2]
[353407271,1739817065442,-500.0,0.00014438,2]
[353407272,1739817065453,-500.0,0.00014438,2]
[353407273,1739817065463,-675.42,0.00014438,2]
[353407274,1739817065472,-500.0,0.00014438,2]
[353407275,1739817065482,-505.6,0.00014438,2]
[353407276,1739817065491,-500.0,0.00014438,2]
[353407277,1739817065500,-500.0,0.00014438,2]
[353407278,1739817065509,-500.0,0.00014438,2]
[353407279,1739817065518,-638.73,0.00014438,2]
[353407280,1739817065528,-571.56,0.00014438,2]
[353407281,1739817065537,-500.0,0.00014438,2]
[353407282,1739817065547,-628.39,0.00014438,2]
[353407283,1739817065556,-247.7249324,0.00014438,2]
[353407284,1739817065565,-500.0,0.00014438,2]
[353407285,1739817065574,-500.0,0.00014438,2]
[353407286,1739817065584,-752.97,0.00014438,2]
[353407287,1739817065593,-500.0,0.00014438,2]
[353407288,1739817065603,-500.0,0.00014438,2]
[353407289,1739817065612,-151.0,0.00014438,2]
[353407290,1739817065621,-500.0,0.00014438,2]
[353407291,1739817065630,-563.15,0.00014438,2]
[353407292,1739817065639,-318.41630177,0.00014438,2]
[353407293,1739817065648,-500.0,0.00014438,2]
[353407294,1739817065659,-1009.3,0.00014438,2]
[353407295,1739817065668,-500.0,0.00014438,2]
[353407296,1739817065677,-500.0,0.00014438,2]
[353407297,1739817065685,-500.0,0.00014438,2]
[353407298,1739817065694,-500.0,0.00014438,2]
[353407299,1739817065705,-500.0,0.00014438,2]
[353407300,1739817065714,-171.644852,0.00014438,2]
[353407301,1739817065723,-171.644852,0.00014438,2]
[353407302,1739817065732,-500.0,0.00014438,2]
[353407303,1739817065741,-500.0,0.00014438,2]
[353407304,1739817065750,-500.0,0.00014438,2]
[353407305,1739817065759,-500.0,0.00014438,2]
[353407306,1739817065768,-565.46,0.00014438,2]
[353407307,1739817065778,-643.79,0.00014438,2]
[353407308,1739817065786,-151.0,0.00014438,2]
[353407309,1739817065795,-1594.07,0.00014438,2]
[353407310,1739817065804,-500.0,0.00014438,2]
[353407311,1739817065814,-832.31,0.00014438,2]
[353407312,1739817065824,-1331.41,0.00014438,2]
[353407313,1739817065833,-500.0,0.00014438,2]
[353407314,1739817065843,-1191.93,0.00014438,2]
[353407315,1739817065852,-151.0,0.00014438,2]
[353407316,1739817065861,-3245.66,0.00014438,2]
[353407317,1739817065871,-613.53,0.00014438,2]
[353407318,1739817065880,-500.0,0.00014438,2]
[353407319,1739817065889,-1602.85,0.00014438,2]
[353407320,1739817065898,-151.0,0.00014438,2]
[353407321,1739817065907,-151.0,0.00014438,2]
[353407322,1739817065916,-151.0,0.00014438,2]
[353407323,1739817065925,-151.0,0.00014438,2]
[353407324,1739817065934,-1174.07,0.00014438,2]
[353407325,1739817065944,-787.36,0.00014438,2]
[353407326,1739817065956,-270.974476,0.00014438,2]
[353407327,1739817065965,-597.6,0.00014438,2]